bitfinex/quotes_BTCUSD_20251226
["timestamp","ask_amount","ask_price","bid_price","bid_amount"]
[1766732185116,0.01121692,89151.0,89143.0,0.01121793]
[1766732185517,0.01121679,89152.0,89143.0,0.01121793]
[1766732186915,0.02245654,89154.0,89145.0,0.01121767]
[1766732187414,0.01124,89154.0,89145.0,0.01121767]
[1766732187588,0.01124,89159.0,89152.0,0.01121679]
[1766732187790,0.01121528,89164.0,89153.0,0.01121667]
[1766732187791,0.06729174,89164.0,89153.0,0.01121667]
[1766732187967,0.01124,89161.0,89153.0,0.01121667]
[1766732188174,0.01121554,89162.0,89153.0,0.08207667]
[1766732188372,0.01121566,89161.0,89153.0,0.07086]
[1766732188572,0.01121554,89162.0,89155.0,0.07086]
[1766732188893,0.01121554,89162.0,89153.0,0.01121667]
[1766732189076,0.02245541,89163.0,89155.0,0.07086]
[1766732189478,0.02245541,89163.0,89154.0,0.01121654]
[1766732189883,0.01121554,89162.0,89153.0,0.01121667]
[1766732190081,0.01121554,89162.0,89152.0,0.01121679]
[1766732190082,0.01121566,89161.0,89152.0,0.01121679]
[1766732191091,0.01121579,89160.0,89151.0,0.01121692]
[1766732191327,0.01121579,89160.0,89152.0,0.07086]
[1766732191693,0.01121566,89161.0,89152.0,0.08207679]
[1766732192536,0.01121566,89161.0,89154.0,0.07086]
[1766732192885,0.01121554,89162.0,89154.0,0.07086]
[1766732193702,0.01121566,89161.0,89154.0,0.07086]
[1766732194507,0.01121554,89162.0,89154.0,0.07086]
[1766732194988,0.32925586,89262.0,89158.0,0.01121604]
[1766732194989,0.01121478,89168.0,89158.0,0.01121604]
[1766732195192,0.01124,89167.0,89159.0,0.08207591]
[1766732195831,0.0112144,89171.0,89159.0,0.08207591]
[1766732195832,0.01121428,89172.0,89160.0,0.07086]
[1766732196170,0.01121403,89174.0,89165.0,0.07086]
[1766732196325,0.0224539,89175.0,89165.0,0.08207516]
[1766732196653,0.0112134,89179.0,89168.0,0.01121478]
[1766732196894,0.01121352,89178.0,89170.0,0.07086]
[1766732197430,0.0112134,89179.0,89170.0,0.07086]
[1766732197639,0.01121377,89176.0,89170.0,0.07086]
[1766732197844,0.01121365,89177.0,89170.0,0.07086]
[1766732198400,0.01121377,89176.0,89170.0,0.07086]
[1766732198579,0.01121365,89177.0,89170.0,0.07086]
[1766732198950,0.01121365,89177.0,89168.0,0.01121478]
[1766732199147,0.01121377,89176.0,89168.0,0.01121478]
[1766732199360,0.01121377,89176.0,89167.0,0.41011914]
[1766732199990,0.01121377,89176.0,89167.0,0.01121491]
[1766732200147,0.0112139,89175.0,89166.0,0.02245503]
[1766732200347,0.01121377,89176.0,89167.0,0.01121491]
[1766732200805,0.01121365,89177.0,89168.0,0.01121478]
[1766732201124,0.01121377,89176.0,89167.0,0.01121491]
[1766732201818,0.0112139,89175.0,89168.0,0.07086]
[1766732202436,0.01121377,89176.0,89167.0,0.01121491]
[1766732202927,0.01121377,89176.0,89167.0,0.07892491]
[1766732203258,0.01121377,89176.0,89168.0,0.06771]
[1766732203259,0.0112139,89175.0,89168.0,0.06771]
[1766732203456,0.01121377,89176.0,89166.0,0.01124]
[1766732203990,0.01121365,89177.0,89167.0,0.01121491]
[1766732204187,0.0112139,89175.0,89167.0,0.06905]
[1766732205130,0.01121415,89173.0,89167.0,0.06905]
[1766732205294,0.01121403,89174.0,89167.0,0.06905]
[1766732205912,0.01121415,89173.0,89167.0,0.06905]
[1766732206299,0.01121415,89173.0,89166.0,0.01124]
[1766732206746,0.01121403,89174.0,89166.0,0.01124]
[1766732207146,0.01121352,89178.0,89169.0,0.01121465]
[1766732207349,0.0112134,89179.0,89170.0,0.01121453]
[1766732208288,0.01121352,89178.0,89169.0,0.01121465]
[1766732208489,0.01121352,89178.0,89169.0,0.08026465]
[1766732208984,0.01121352,89178.0,89168.0,0.01121478]
[1766732209164,0.07851921,89181.0,89158.0,0.29336959]
[1766732209165,0.000549,89169.0,89162.0,0.02242931]
[1766732209536,0.01121415,89173.0,89164.0,0.01121528]
[1766732209867,0.01121428,89172.0,89163.0,0.01121541]
[1766732210035,0.01121415,89173.0,89164.0,0.01121528]
[1766732210241,0.01121428,89172.0,89163.0,0.01121541]
[1766732210779,0.01121403,89174.0,89164.0,0.06729168]
[1766732211137,0.01121403,89174.0,89165.0,0.02245516]
[1766732212781,0.01121403,89174.0,89166.0,0.06905]
[1766732212948,0.01121415,89173.0,89166.0,0.06905]
[1766732213502,0.01121403,89174.0,89166.0,0.06905]
[1766732213848,0.01121403,89174.0,89165.0,0.02245516]
[1766732215340,0.01121403,89174.0,89166.0,0.06905]
[1766732215786,0.01121415,89173.0,89166.0,0.06905]
[1766732217005,0.01121403,89174.0,89166.0,0.06905]
[1766732217367,0.01128633,89174.0,89166.0,0.06905]
[1766732217789,0.01121415,89173.0,89166.0,0.06905]
[1766732218186,0.01121428,89172.0,89166.0,0.06905]
[1766732218393,0.01121428,89172.0,89166.0,0.068501]
[1766732218799,0.01121415,89173.0,89166.0,0.068501]
[1766732219054,0.01128633,89174.0,89166.0,0.068501]
[1766732220675,7.23e-05,89174.0,89166.0,0.068501]
[1766732221007,7.23e-05,89174.0,89166.0,0.07971603]
[1766732221203,0.01121365,89177.0,89168.0,0.08026478]
[1766732221454,0.01124,89181.0,89177.0,0.000549]
[1766732221601,0.02245315,89181.0,89177.0,0.000549]
[1766732221795,0.02245315,89181.0,89172.0,0.06905]
[1766732221796,0.0112134,89179.0,89172.0,0.06905]
[1766732222057,0.01121327,89180.0,89172.0,0.06905]
[1766732222457,0.01121352,89178.0,89172.0,0.06905]
[1766732222665,0.0112134,89179.0,89172.0,0.06905]
[1766732223407,0.01121352,89178.0,89172.0,0.06905]
[1766732223583,0.0112139,89175.0,89172.0,0.0685]
[1766732223794,0.01121365,89177.0,89172.0,0.0685]
[1766732223795,0.01121377,89176.0,89172.0,0.0685]
[1766732224131,0.06728226,89177.0,89172.0,0.0685]
[1766732225009,0.01121377,89176.0,89172.0,0.0685]
[1766732225208,0.0112139,89175.0,89172.0,0.0685]
[1766732225391,0.01121377,89176.0,89172.0,0.0685]
[1766732226220,0.0112139,89175.0,89172.0,0.0685]
[1766732226422,0.01121428,89172.0,89164.0,0.08029]
[1766732226757,0.06728699,89171.0,89164.0,0.0691223]
[1766732226976,0.0112144,89171.0,89164.0,0.0691223]
[1766732227360,0.01121428,89172.0,89164.0,0.0691223]
[1766732227688,0.01121428,89172.0,89164.0,0.08033758]
[1766732227892,0.01121415,89173.0,89164.0,0.08033758]
[1766732228149,0.01121428,89172.0,89164.0,0.0691223]
[1766732228334,0.01121415,89173.0,89164.0,0.08033758]
[1766732228540,0.01121428,89172.0,89164.0,0.0691223]
[1766732228809,0.0112144,89171.0,89164.0,0.0691223]
[1766732228989,0.01121428,89172.0,89164.0,0.0691223]
[1766732229358,0.01121465,89169.0,89164.0,0.0691223]
[1766732229594,0.01121428,89172.0,89164.0,0.0691223]
[1766732229959,0.01121415,89173.0,89164.0,0.08033758]
[1766732231125,0.0112139,89175.0,89164.0,0.0691223]
[1766732231438,0.01121403,89174.0,89164.0,0.08033758]
[1766732231825,0.01121403,89174.0,89165.0,0.01121516]
[1766732232398,0.06728315,89176.0,89164.0,0.08033758]
[1766732232608,0.0112139,89175.0,89165.0,0.01121516]
[1766732233007,0.0112139,89175.0,89166.0,0.01121503]
[1766732233621,0.0112139,89175.0,89166.0,0.08026503]
[1766732234023,0.01121403,89174.0,89166.0,0.06905]
[1766732234240,3.8e-07,89203.0,89192.0,0.01121176]
[1766732234393,3.8e-07,89203.0,89200.0,0.0734]
[1766732234592,0.01164,89216.0,89209.0,0.0024885]
[1766732235042,0.01204,89215.0,89209.0,0.0024885]
[1766732235244,0.0004,89215.0,89209.0,0.0024885]
[1766732235450,0.00075821,89215.0,89209.0,0.0024885]
[1766732235644,0.02328,89217.0,89209.0,0.08709813]
[1766732235922,0.01133634,89217.0,89209.0,0.0758885]
[1766732236077,0.01133634,89217.0,89209.0,0.08709813]
[1766732236863,0.01133634,89217.0,89211.0,0.0734]
[1766732237317,0.02254496,89217.0,89211.0,0.0734]
[1766732237730,0.011209,89214.0,89211.0,0.0734]
[1766732237904,0.011209,89214.0,89211.0,0.073]
[1766732238108,0.01120875,89216.0,89211.0,0.073]
[1766732238291,0.01120887,89215.0,89211.0,0.073]
[1766732238484,0.011209,89214.0,89211.0,0.073]
[1766732238687,0.01120887,89215.0,89211.0,0.073]
[1766732238884,0.01120875,89216.0,89211.0,0.073]
[1766732239334,0.01120749,89226.0,89217.0,0.0734]
[1766732239757,0.01160711,89229.0,89217.0,0.0734]
[1766732239902,0.01120736,89227.0,89217.0,0.0734]
[1766732240099,0.01120736,89227.0,89217.0,0.08460862]
[1766732240365,0.01120724,89228.0,89219.0,0.0734]
[1766732240702,2.13e-06,89225.0,89222.0,0.08460799]
[1766732241540,2.13e-06,89225.0,89222.0,0.0734]
[1766732241742,2.13e-06,89225.0,89222.0,0.072851]
[1766732242212,0.01120975,89225.0,89222.0,0.072851]
[1766732242741,2.13e-06,89225.0,89222.0,0.072851]
[1766732242944,0.01120975,89225.0,89222.0,0.06078049]
[1766732243610,2.13e-06,89225.0,89222.0,0.06078049]
[1766732244564,0.01120975,89225.0,89222.0,0.06078049]
[1766732244781,2.13e-06,89225.0,89222.0,0.06078049]
[1766732245528,0.01120975,89225.0,89222.0,0.06078049]
[1766732246413,0.05603922,89224.0,89222.0,0.06078049]
[1766732247043,0.0112085,89218.0,89211.0,0.0734]
[1766732247265,0.01120862,89217.0,89211.0,0.0734]
[1766732247439,0.011209,89214.0,89211.0,0.0734]
[1766732247639,0.01120887,89215.0,89211.0,0.0734]
[1766732248227,0.01120875,89216.0,89211.0,0.0734]
[1766732248452,0.0112085,89218.0,89211.0,0.0734]
[1766732249058,0.01120824,89220.0,89211.0,0.0734]
[1766732249801,0.01120837,89219.0,89211.0,0.0734]
[1766732250589,0.0112085,89218.0,89211.0,0.0734]
[1766732250789,0.01120837,89219.0,89211.0,0.0734]
[1766732251129,0.0112085,89218.0,89211.0,0.0734]
[1766732251959,0.01120875,89216.0,89211.0,0.0734]
[1766732252134,0.01120875,89216.0,89209.0,0.0024885]
[1766732252329,0.01120837,89219.0,89209.0,0.0024885]
[1766732252539,0.0112085,89218.0,89209.0,0.01369813]
[1766732252716,0.01120837,89219.0,89209.0,0.01369813]
[1766732252878,0.06724912,89221.0,89211.0,0.01120938]
[1766732253082,0.01120824,89220.0,89211.0,0.01120938]
[1766732253342,0.06724912,89221.0,89211.0,0.01120938]
[1766732254035,0.01120824,89220.0,89211.0,0.08460938]
[1766732254200,0.01120824,89220.0,89211.0,0.0734]
[1766732254399,0.06725024,89219.0,89211.0,0.0734]
[1766732254724,0.0112085,89218.0,89211.0,0.0734]
[1766732255129,0.01120837,89219.0,89211.0,0.0734]
[1766732255471,0.01120862,89217.0,89211.0,0.0734]
[1766732255885,0.01120887,89215.0,89211.0,0.0734]
[1766732256111,0.01120875,89216.0,89211.0,0.0734]
[1766732256286,0.01120887,89215.0,89211.0,0.0734]
[1766732256480,0.011209,89214.0,89211.0,0.0734]
[1766732256637,0.01120925,89212.0,89209.0,0.0024885]
[1766732256838,0.067256,89212.0,89209.0,0.0024885]
[1766732257044,0.01120925,89212.0,89209.0,0.0024885]
[1766732257461,0.01120912,89213.0,89209.0,0.0024885]
[1766732258476,0.011209,89214.0,89209.0,0.0024885]
[1766732258681,0.01120887,89215.0,89210.0,0.0734]
[1766732258857,0.01120875,89216.0,89210.0,0.0734]
[1766732259266,0.01120887,89215.0,89210.0,0.0734]
[1766732259601,0.01120887,89215.0,89210.0,0.07297071]
[1766732260544,0.01120875,89216.0,89210.0,0.07297071]
[1766732261203,0.011209,89214.0,89210.0,0.07297071]
[1766732261395,0.01120887,89215.0,89210.0,0.07297071]
[1766732261579,0.04346123,89217.0,89210.0,0.07297071]
[1766732261778,0.01120887,89215.0,89210.0,0.07297071]
[1766732262517,0.011209,89214.0,89210.0,0.07297071]
[1766732262690,0.01124,89218.0,89210.0,0.07297071]
[1766732262691,0.01120812,89221.0,89214.0,0.001099]
[1766732262887,0.01120812,89221.0,89215.0,0.06755]
[1766732263189,0.06724828,89222.0,89215.0,0.06755]
[1766732263351,0.01120787,89223.0,89215.0,0.06755]
[1766732263569,0.01120799,89222.0,89215.0,0.06755]
[1766732263769,0.02244975,89225.0,89215.0,0.06755]
[1766732264122,0.01120799,89222.0,89215.0,0.06755]
[1766732264819,0.01120812,89221.0,89215.0,0.06755]
[1766732265115,0.01120787,89223.0,89215.0,0.06755]
[1766732265278,0.01120799,89222.0,89215.0,0.06755]
[1766732266366,0.01120787,89223.0,89215.0,0.06755]
[1766732266485,0.01120799,89222.0,89215.0,0.06755]
[1766732266844,0.01120787,89223.0,89215.0,0.06755]
[1766732267000,0.01120774,89224.0,89215.0,0.06755]
[1766732267350,0.01120787,89223.0,89215.0,0.06755]
[1766732267701,0.01120774,89224.0,89215.0,0.06755]
[1766732268717,0.01124213,89225.0,89215.0,0.06755]
[1766732268924,0.01124213,89225.0,89224.0,0.074889]
[1766732269421,0.01124213,89225.0,89218.0,0.07434]
[1766732269730,0.02244975,89225.0,89218.0,0.07434]
[1766732270121,0.01124213,89225.0,89218.0,0.07434]
[1766732270310,0.02244975,89225.0,89218.0,0.07434]
[1766732270728,0.01124213,89225.0,89218.0,0.07434]
[1766732271622,0.02244975,89225.0,89218.0,0.07434]
[1766732272849,0.01120787,89223.0,89218.0,0.07434]
[1766732273050,0.02244975,89225.0,89218.0,0.07434]
[1766732274000,0.01120774,89224.0,89218.0,0.07434]
[1766732274209,0.02244975,89225.0,89218.0,0.07434]
[1766732275232,0.01120774,89224.0,89218.0,0.07434]
[1766732275431,0.01120799,89222.0,89218.0,0.07434]
[1766732275640,0.01120774,89224.0,89218.0,0.07434]
[1766732275870,0.01120812,89221.0,89218.0,0.07434]
[1766732276052,0.01120787,89223.0,89218.0,0.07434]
[1766732276452,0.01120799,89222.0,89218.0,0.07434]
[1766732277305,0.01120812,89221.0,89218.0,0.07434]
[1766732277623,0.01120799,89222.0,89218.0,0.07434]
[1766732277999,0.01120812,89221.0,89218.0,0.07434]
[1766732278225,0.01120799,89222.0,89218.0,0.07434]
[1766732279706,0.01120812,89221.0,89218.0,0.07434]
[1766732280133,0.06724918,89221.0,89218.0,0.07434]
[1766732280896,0.01120875,89216.0,89210.0,0.01124]
[1766732281065,0.02241851,89215.0,89210.0,0.07434]
[1766732281270,0.02241851,89215.0,89211.0,0.01120938]
[1766732281467,0.02186951,89215.0,89210.0,0.0855495]
[1766732281711,0.02186951,89215.0,89210.0,0.07434]
[1766732284088,0.02186951,89215.0,89210.0,0.0855495]
[1766732284427,0.02186951,89215.0,89209.0,0.0024885]
[1766732284927,0.03307838,89215.0,89209.0,0.0024885]
[1766732285157,0.02186951,89215.0,89209.0,0.0024885]
[1766732285357,0.03307838,89215.0,89209.0,0.0024885]
[1766732285749,0.02186951,89215.0,89209.0,0.0024885]
[1766732287184,0.03307838,89215.0,89209.0,0.0024885]
[1766732287405,0.02186951,89215.0,89209.0,0.0024885]
[1766732288148,0.03307838,89215.0,89209.0,0.0024885]
[1766732288451,0.02186951,89215.0,89209.0,0.0024885]
[1766732289241,0.01120912,89213.0,89209.0,0.0024885]
[1766732289447,0.000549,89209.0,89195.0,0.07434]
[1766732289747,0.02241851,89201.0,89195.0,0.07469821]
[1766732293129,0.03362914,89201.0,89195.0,0.07469821]
[1766732293525,0.03362914,89201.0,89188.0,0.06727318]
[1766732293526,0.01121189,89191.0,89178.0,0.1121207]
[1766732293843,0.01121151,89194.0,89191.0,0.07434]
[1766732294079,0.01121151,89194.0,89191.0,0.07443634]
[1766732294805,0.01121113,89197.0,89194.0,0.000741]
[1766732294965,0.01121113,89197.0,89191.0,0.07443634]
[1766732295366,0.01121139,89195.0,89191.0,0.07443634]
[1766732295684,0.01121126,89196.0,89191.0,0.07443634]
[1766732296085,0.0055183,89198.0,89196.0,0.000191]
[1766732296599,0.01121113,89197.0,89191.0,0.07443634]
[1766732297491,0.01121126,89196.0,89191.0,0.07443634]
[1766732298591,0.01121139,89195.0,89191.0,0.07443634]
[1766732298927,0.01121126,89196.0,89191.0,0.07443634]
[1766732299487,0.01121113,89197.0,89191.0,0.07443634]
[1766732299691,0.01121126,89196.0,89191.0,0.07443634]
[1766732300477,0.01147355,89191.0,89183.0,0.07945]
[1766732300872,0.01121214,89189.0,89183.0,0.06821]
[1766732301602,0.01121151,89194.0,89183.0,0.06821]
[1766732301810,0.01121164,89193.0,89185.0,0.06821]
[1766732302012,0.01121151,89194.0,89185.0,0.06821]
[1766732302428,0.01121164,89193.0,89185.0,0.06821]
[1766732302856,0.01121176,89192.0,89185.0,0.06821]
[1766732303368,0.01121189,89191.0,89185.0,0.06821]
[1766732303574,0.01121176,89192.0,89185.0,0.06821]
[1766732303964,0.01121189,89191.0,89185.0,0.06821]
[1766732304154,0.01121176,89192.0,89185.0,0.06821]
[1766732304358,0.01121164,89193.0,89185.0,0.06821]
[1766732304670,0.01121176,89192.0,89185.0,0.06821]
[1766732304886,0.01121189,89191.0,89185.0,0.06821]
[1766732305241,0.01121176,89192.0,89185.0,0.06821]
[1766732306988,0.01121201,89190.0,89185.0,0.06821]
[1766732308173,0.01121214,89189.0,89185.0,0.06821]
[1766732308403,0.01121227,89188.0,89185.0,0.06821]
[1766732308589,0.01121201,89190.0,89188.0,0.000287]
[1766732309073,0.01121201,89190.0,89185.0,0.06821]
[1766732309632,0.01121189,89191.0,89185.0,0.06821]
[1766732309813,0.01121201,89190.0,89185.0,0.06821]
[1766732309969,0.01121189,89191.0,89185.0,0.06821]
[1766732310179,0.01121176,89192.0,89191.0,0.000287]
[1766732310809,0.01121176,89192.0,89185.0,0.06821]
[1766732311013,0.01120975,89208.0,89196.0,0.06821]
[1766732311169,0.05604979,89207.0,89196.0,0.06821]
[1766732311369,0.01121013,89205.0,89196.0,0.06821]
[1766732311612,0.0112105,89204.0,89196.0,0.06821]
[1766732311792,3.8e-07,89205.0,89194.0,0.01121151]
[1766732312003,3.8e-07,89205.0,89196.0,0.06821]
[1766732312164,5.1e-07,89205.0,89195.0,0.06821]
[1766732312603,0.01121064,89205.0,89195.0,0.07942139]
[1766732312821,0.01121025,89204.0,89195.0,0.06821]
[1766732313065,0.01121064,89205.0,89195.0,0.07942139]
[1766732313265,0.01121064,89205.0,89195.0,0.06821]
[1766732313432,0.01121064,89205.0,89197.0,0.06821]
[1766732313613,0.01121025,89204.0,89197.0,0.06821]
[1766732313920,0.01121064,89205.0,89197.0,0.06821]
[1766732314514,0.01121,89206.0,89197.0,0.06821]
[1766732314718,0.0672604,89206.0,89197.0,0.06821]
[1766732315339,0.01121013,89205.0,89197.0,0.06821]
[1766732315532,0.01121025,89204.0,89197.0,0.06821]
[1766732315699,0.01121013,89205.0,89197.0,0.06821]
[1766732315899,0.01121025,89204.0,89197.0,0.06821]
[1766732317550,0.01121038,89203.0,89197.0,0.06821]
[1766732317763,0.01121025,89204.0,89197.0,0.06821]
[1766732319219,0.01121013,89205.0,89197.0,0.06821]
[1766732319693,0.01121,89206.0,89205.0,0.000837]
[1766732320189,0.06726079,89205.0,89197.0,0.06821]
[1766732320349,0.01121038,89203.0,89197.0,0.06821]
[1766732320981,0.01121051,89202.0,89197.0,0.06821]
[1766732321586,0.01121038,89203.0,89197.0,0.06821]
[1766732323762,0.06726199,89204.0,89197.0,0.06821]
[1766732324103,0.01121038,89203.0,89197.0,0.06821]
[1766732324304,0.01121025,89204.0,89197.0,0.06821]
[1766732324516,0.01121,89206.0,89197.0,0.06821]
[1766732324718,0.01121013,89205.0,89197.0,0.06821]
[1766732326051,0.01121025,89204.0,89197.0,0.06821]
[1766732326253,0.01121013,89205.0,89197.0,0.06821]
[1766732327554,0.01121025,89204.0,89197.0,0.06821]
[1766732327972,0.01121013,89205.0,89197.0,0.06821]
[1766732329225,0.01121025,89204.0,89197.0,0.06821]
[1766732329460,0.01121013,89205.0,89197.0,0.06821]
[1766732330015,0.01121025,89204.0,89197.0,0.06821]
[1766732330255,0.01121013,89205.0,89197.0,0.06821]
[1766732330458,0.01121,89206.0,89197.0,0.06821]
[1766732331577,0.01121,89206.0,89197.0,0.07942113]
[1766732331736,0.01121,89206.0,89197.0,0.06821]
[1766732332078,0.01121013,89205.0,89197.0,0.06821]
[1766732332378,0.01121025,89204.0,89197.0,0.06821]
[1766732332527,0.01121013,89205.0,89197.0,0.06821]
[1766732332946,0.01121025,89204.0,89197.0,0.06821]
[1766732333566,0.01121038,89203.0,89197.0,0.06821]
[1766732333773,0.01121025,89204.0,89197.0,0.06821]
[1766732335343,0.01121013,89205.0,89197.0,0.06821]
[1766732335828,0.01121,89206.0,89197.0,0.06821]
[1766732336417,0.01121,89206.0,89197.0,0.07942113]
[1766732336584,0.01121,89206.0,89197.0,0.06821]
[1766732336787,0.05604972,89207.0,89197.0,0.07942113]
[1766732337190,0.07849806,89209.0,89198.0,0.01121101]
[1766732337381,0.06725881,89208.0,89198.0,0.01121101]
[1766732338038,0.01120988,89207.0,89197.0,0.07942113]
[1766732338233,0.01120988,89207.0,89198.0,0.01121101]
[1766732338630,0.01120988,89207.0,89197.0,0.07942113]
[1766732338824,0.01120988,89207.0,89198.0,0.01121101]
[1766732339110,0.01120975,89208.0,89198.0,0.01121101]
[1766732339315,0.01124,89209.0,89199.0,0.01121088]
[1766732339543,0.01120975,89208.0,89199.0,0.01121088]
[1766732339741,0.01120975,89208.0,89198.0,0.01121101]
[1766732342364,0.01120988,89207.0,89198.0,0.01121101]
[1766732342566,0.01120975,89208.0,89198.0,0.01121101]
[1766732342864,0.01120988,89207.0,89198.0,0.01121101]
[1766732343305,0.01120988,89207.0,89197.0,0.14089646]
[1766732343504,0.01120988,89207.0,89198.0,0.01121101]
[1766732344219,0.01120988,89207.0,89197.0,0.07363]
[1766732344992,0.01120988,89207.0,89198.0,0.01121101]
[1766732345200,0.01120988,89207.0,89197.0,0.08484113]
[1766732345836,0.01120988,89207.0,89198.0,0.01121101]
[1766732346049,0.01120988,89207.0,89197.0,0.08484113]
[1766732346250,0.01120988,89207.0,89198.0,0.01121101]
[1766732346837,0.01120988,89207.0,89197.0,0.08484113]
[1766732347077,0.01120988,89207.0,89198.0,0.01121101]
[1766732347375,0.01120975,89208.0,89197.0,0.08484113]
[1766732347515,0.01120988,89207.0,89198.0,0.01121101]
[1766732348255,0.01120988,89207.0,89197.0,0.08484113]
[1766732348614,0.01120988,89207.0,89198.0,0.01121101]
[1766732349056,0.01120975,89208.0,89198.0,0.01121101]
[1766732350570,0.01120988,89207.0,89198.0,0.01121101]
[1766732351411,0.01124,89209.0,89197.0,0.07363]
[1766732351657,0.01121025,89204.0,89197.0,0.07363]
[1766732351853,0.01121038,89203.0,89197.0,0.07363]
[1766732352117,0.01121038,89203.0,89194.0,0.01121151]
[1766732352537,0.01121025,89204.0,89194.0,0.01121151]
[1766732352981,0.01121025,89204.0,89194.0,0.08484151]
[1766732353490,0.01121025,89204.0,89195.0,0.01121139]
[1766732353839,0.01121025,89204.0,89194.0,0.08484151]
[1766732354895,0.01121013,89205.0,89194.0,0.08484151]
[1766732355395,0.01121025,89204.0,89194.0,0.08484151]
[1766732355900,0.01121038,89203.0,89194.0,0.08484151]
[1766732356500,0.01121025,89204.0,89194.0,0.08484151]
[1766732356752,0.03362902,89202.0,89186.0,0.01121252]
[1766732356915,0.000262,89194.0,89191.0,0.01121189]
[1766732357130,0.000262,89194.0,89192.0,0.05605853]
[1766732357433,0.03365851,89202.0,89193.0,0.01121164]
[1766732357597,0.04486902,89202.0,89193.0,0.01121164]
[1766732357795,0.03365851,89202.0,89193.0,0.01121164]
[1766732357996,0.04497627,89202.0,89193.0,0.01121164]
[1766732358216,0.01121063,89201.0,89191.0,0.08263189]
[1766732358406,0.04497627,89202.0,89193.0,0.01121164]
[1766732358756,0.04497627,89202.0,89192.0,0.01121176]
[1766732359062,0.03376576,89202.0,89193.0,0.01121164]
[1766732359383,0.04497627,89202.0,89192.0,0.01121176]
[1766732359584,0.04497627,89202.0,89159.0,0.01121302]
[1766732359585,0.01121239,89187.0,89159.0,0.01121302]
[1766732359786,0.39861098,89170.0,89159.0,0.07142]
[1766732360023,0.01121478,89168.0,89159.0,0.07142]
[1766732360285,0.01121528,89164.0,89159.0,0.07142]
[1766732360793,0.01121541,89163.0,89153.0,0.08263667]
[1766732360940,0.01124,89162.0,89157.0,0.01121616]
[1766732361151,0.010953,89162.0,89157.0,0.01121616]
[1766732361321,3e-06,89162.0,89159.0,0.08263591]
[1766732363409,3e-06,89162.0,89159.0,0.07142]
[1766732363828,3e-06,89162.0,89159.0,0.08263591]
[1766732364033,3e-06,89162.0,89159.0,0.07142]
[1766732364436,3e-06,89162.0,89159.0,0.08263591]
[1766732364619,3e-06,89162.0,89159.0,0.07142]
[1766732364822,3e-06,89162.0,89159.0,0.08263591]
[1766732366771,3e-06,89162.0,89159.0,0.07142]
[1766732366905,3e-06,89162.0,89159.0,0.08263591]
[1766732369113,3e-06,89162.0,89159.0,0.07142]
[1766732369520,3e-06,89162.0,89159.0,0.08263591]
[1766732369781,0.000549,89159.0,89150.0,0.22433902]
[1766732369984,0.000549,89159.0,89155.0,0.01121642]
[1766732370193,3e-06,89162.0,89155.0,0.01121642]
[1766732370391,3e-06,89162.0,89156.0,0.01121629]
[1766732370595,3e-06,89162.0,89155.0,0.01121642]
[1766732370768,3e-06,89162.0,89156.0,0.01121629]
[1766732370971,3e-06,89162.0,89155.0,0.01121642]
[1766732371741,3e-06,89162.0,89156.0,0.01121629]
[1766732372083,3e-06,89162.0,89157.0,0.01121616]
[1766732373090,3e-06,89162.0,89158.0,0.01121604]
[1766732373392,0.01124,89161.0,89158.0,0.01121604]
[1766732373603,0.01069,89161.0,89158.0,0.01121604]
[1766732374391,0.01124,89163.0,89158.0,0.01121604]
[1766732374742,0.01124,89163.0,89156.0,0.1262195]
[1766732375135,0.02245541,89163.0,89154.0,0.01121654]
[1766732375344,0.02245541,89163.0,89153.0,0.01157437]
[1766732375599,0.01121554,89162.0,89153.0,0.0003577]
[1766732375782,0.01121554,89162.0,89153.0,0.01157437]
[1766732375956,0.01124,89161.0,89153.0,0.0003577]
[1766732376494,0.01124,89161.0,89153.0,0.01157437]
[1766732377470,0.01124,89161.0,89154.0,0.01121654]
[1766732378009,0.01124,89161.0,89153.0,0.0003577]
[1766732378209,0.01124,89161.0,89153.0,0.01157437]
[1766732378627,0.02245566,89161.0,89153.0,0.0003577]
[1766732379035,0.01124,89161.0,89153.0,0.01157437]
[1766732379402,0.01124,89161.0,89153.0,0.0003577]
[1766732379618,0.02245566,89161.0,89153.0,0.0003577]
[1766732379819,0.0560821,89155.0,89153.0,7e-07]
[1766732379994,0.01121629,89156.0,89153.0,7e-07]
[1766732380198,0.06729818,89156.0,89153.0,7e-07]
[1766732380584,0.05608273,89154.0,89153.0,7e-07]
[1766732381388,0.06729818,89156.0,89153.0,7e-07]
[1766732381875,0.05608264,89155.0,89153.0,7e-07]
[1766732382237,0.01124,89154.0,89153.0,7e-07]
[1766732387534,0.01124,89154.0,89139.0,0.07963843]
[1766732387535,0.01121868,89137.0,89122.0,0.01122057]
[1766732387681,0.01124,89138.0,89137.0,0.000906]
[1766732388082,0.01124,89138.0,89133.0,0.06842]
[1766732389019,0.010884,89138.0,89133.0,0.06842]
[1766732389379,0.010884,89138.0,89127.0,0.01121994]
[1766732389585,0.010884,89138.0,89117.0,0.06842]
[1766732389804,0.010884,89138.0,89127.0,0.05609923]
[1766732390009,0.01121918,89133.0,89123.0,0.01122044]
[1766732390212,0.01121994,89127.0,89115.0,0.01122145]
[1766732390366,0.06732049,89126.0,89116.0,0.06842]
[1766732390569,0.01122019,89125.0,89116.0,0.06842]
[1766732390779,0.01122032,89124.0,89116.0,0.06842]
[1766732391178,0.01122019,89125.0,89116.0,0.06842]
[1766732391439,0.01122007,89126.0,89116.0,0.06842]
[1766732391737,0.01122007,89126.0,89116.0,0.07964132]
[1766732392064,0.01122019,89125.0,89116.0,0.06842]
[1766732392265,0.01122032,89124.0,89116.0,0.06842]
[1766732392864,0.01122044,89123.0,89116.0,0.06842]
[1766732393183,0.01122057,89122.0,89116.0,0.06842]
[1766732394095,0.01122044,89123.0,89116.0,0.06842]
[1766732394297,0.01122044,89123.0,89112.0,0.01122183]
[1766732394476,0.01122057,89122.0,89110.0,0.38364489]
[1766732394676,0.01122057,89122.0,89110.0,0.45206489]
[1766732394889,0.01122007,89126.0,89114.0,0.01122158]
[1766732395081,0.01122007,89126.0,89115.0,0.01122145]
[1766732395082,0.01122019,89125.0,89115.0,0.01122145]
[1766732395285,0.01122007,89126.0,89115.0,0.01122145]
[1766732395462,0.01122007,89126.0,89113.0,0.05610802]
[1766732395666,0.0107658,89126.0,89115.0,0.01122145]
[1766732395980,0.01122019,89125.0,89115.0,0.01122145]
[1766732396561,0.01122019,89125.0,89114.0,0.01122158]
[1766732396765,0.01122019,89125.0,89113.0,0.06732972]
[1766732396766,0.01122032,89124.0,89115.0,0.06842]
[1766732396995,0.01122019,89125.0,89114.0,0.01122158]